Cogmind - Beta 16.1 @@@ ROGUE MODE // 2026.03.02 @ 13:13:50 Player: Prominous Vale Result: Destroyed by G-34 Mercenary with Small Laser Performance ------------- Evolutions (1) 500 Regions Visited (2) 400 Robots Destroyed (10) 50 Value Destroyed (211) 211 Prototype IDs (0) 0 Alien Tech Used (0) 0 Bonus (0) 0 TOTAL SCORE: 1161 Bonus ------- None Cogmind --------- Core Integrity 0/400 Matter 295/300 Energy 100/100 System Corruption 13% Temperature Cool (6) Movement Core (1350) Ox26 Location -9/Materials Parts ------- > --- POWER (1) -------- (None) > --- PROPULSION (3) --- (None) > --- UTILITY (3) ------ Huge Storage Unit > --- WEAPON (2) ------- (None) > --- INVENTORY (25) --- Ion Engine Ion Engine Ion Engine Heat Sink Peak State ------------ > --- POWER ------------ Ion Engine > --- PROPULSION ------- Wheel Compact Wheel > --- UTILITY ---------- Small Storage Unit Huge Storage Unit > --- WEAPON ----------- Medium Laser Assault Rifle > --- INVENTORY -------- Ion Engine Small Laser [Rating: 7] Favorites ----------- Power Ion Engine Engine Ion Engine Propulsion Compact Wheel Wheel Compact Wheel Utility Small Storage Unit Storage Small Storage Unit Weapon Assault Rifle Energy Gun Medium Laser Ballistic Gun Assault Rifle Build | -11 -10 -9 ------- Run | Yrd Mat Mat Slots Evolved 2 | . . 2 Power . | . . . Propulsion 1 | . . 1 Utility 1 | . . 1 Weapon . | . . . Parts Attached 10 | 6 1 3 Power 2 | 1 . 1 Engine 2 | 1 . 1 Core . | . . . Reactor . | . . . Propulsion 2 | 2 . . Treads . | . . . Leg . | . . . Wheel 2 | 2 . . Hover . | . . . Flight . | . . . Utility 2 | 1 1 . Device . | . . . Storage 2 | 1 1 . Processor . | . . . Hackware . | . . . Protection . | . . . Artifact . | . . . Weapon 4 | 2 . 2 Energy Gun 3 | 1 . 2 Energy Cannon . | . . . Ballistic Gun 1 | 1 . . Ballistic Cannon . | . . . Launcher . | . . . Special Weapon . | . . . Impact Weapon . | . . . Slashing Weapon . | . . . Piercing Weapon . | . . . Special Melee Weapon . | . . . Unidentified Prototypes . | . . . Parts Lost 8 | . . 8 Power 2 | . . 2 Propulsion 2 | . . 2 Utility 1 | . . 1 Weapon 3 | . . 3 Highest Loss Streak 5 | . . 5 To Critical Strikes . | . . . Average Backups 2 | 1 2 3 Power 1 | . 1 1 Propulsion . | . . . Utility . | . . . Weapon . | 1 1 . Tool/Special . | . . . Unused Backups 4 | . . 4 Power 3 | . . 3 Propulsion . | . . . Utility 1 | . . 1 Weapon . | . . . Tool/Special . | . . . Average Slot Usage (%) 76 | . 95 68 Engine 10 | . 14 9 Wheel 20 | . 28 17 Storage 22 | . 23 21 Energy Gun 11 | . 14 10 Ballistic Gun 10 | . 14 9 Peak Build Rating 7 | 6 7 7 Average Rating 6 | 3 6 6 On Entrance 4 | . 6 7 Avg Prop Armor Cover (%) . | . . . Naked Turns . | . . . Heaviest Build 94 | 14 94 94 Greatest Support 26 | 26 26 26 Greatest Overweight (x) 28 | . 3 28 Average Overweight (x) 2 | . 1 3 Largest Inventory Capacity 25 | 8 25 25 Average Capacity 22 | 6 20 25 Most Carried 5 | 5 3 5 Average Carried 2 | 2 2 3 Final Capacity 25 | 8 25 25 Final Carried 4 | 2 2 4 Class Distribution -------------------- 100% | Mutant Dominant Class ---------------- Mutant | -10/Materials Mutant | -9/Materials Resources | -11 -10 -9 ----------- Run | Yrd Mat Mat Matter Collected 356 | 230 61 65 Remotely . | . . . Salvage Created 238 | . 79 159 Parts 14 | . 4 10 Haulers Intercepted . | . . . Recyclers Shooed . | . . . Parts Field Recycled . | . . . Retrieved Matter . | . . . Parts Self-Destructed . | . . . Prevented . | . . . Parts Restored . | . . . Kills | -11 -10 -9 ------- Run | Yrd Mat Mat Combat Hostiles Destroyed 9 | . 2 7 Guns 9 | . 2 7 Classes Destroyed 3 | . 2 1 Worker 1 | . 1 . Swarmer 4 | . . 4 Grunt 5 | . 2 3 Best Kill Streak 5 | . 3 5 Combat Bots Only 5 | . 2 5 Max Kills in Single Turn 2 | . 1 2 Gunslinging 1 | . . 1 Exploded . | . . . Melee . | . . . Uniques/NPCs Destroyed . | . . . Combat | -11 -10 -9 -------- Run | Yrd Mat Mat Hostile Shots Fired 110 | . 10 100 Missed 19 | . 2 17 Hits 91 | . 8 83 Melee 15 | . . 15 Projectile 76 | . 8 68 Critical Strikes 3 | . . 3 Damage Taken 1195 | . 84 1111 Core 423 | . 20 403 Absorbed by Shields . | . . . Core Remaining (%) 96 | 100 92 . Volleys Fired 37 | . 7 30 Largest 2 | . 2 2 Hottest 70 | . 70 70 Shots Fired 64 | . 14 50 Gun 64 | . 14 50 Cannon . | . . . Launcher . | . . . Special . | . . . Kinetic 28 | . 7 21 Thermal 36 | . 7 29 Explosive . | . . . Electromagnetic . | . . . Robot Hit Streak 16 | . 4 16 Robot Miss Streak 4 | . 2 4 Penetration Max . | . . . Secondary Targets 2 | . 1 1 Max Gunslinging Chain 1 | . 1 1 Shots Hit Robots 43 | . 7 36 Core Hits 18 | . 5 13 Critical Kills . | . . . Critical Parts Destroyed . | . . . Critical Strikes . | . . . Melee Attacks . | . . . Impact . | . . . Slashing . | . . . Piercing . | . . . Sneak Attacks . | . . . Combat Hostiles . | . . . Follow-up Attacks . | . . . Damage Inflicted 532 | . 117 415 Guns 532 | . 117 415 Cannons . | . . . Explosions . | . . . Melee . | . . . Ramming . | . . . Kinetic 224 | . 42 182 Thermal 308 | . 75 233 Explosive . | . . . Electromagnetic . | . . . Impact . | . . . Slashing . | . . . Piercing . | . . . Highest Corruption 13 | . 4 13 Average Corruption 6 | . 2 7 Corruption Purged . | . . . Corruption Blocked . | . . . Effects 3 | . . 3 Message Errors 1 | . . 1 Matter Fused 1 | . . 1 Parts Rejected 1 | . . 1 Overload Shots . | . . . Overflow Damage . | . . . Projectiles . | . . . Explosions . | . . . Melee . | . . . Knockbacks . | . . . Impact . | . . . Kinetic . | . . . Secondary . | . . . Self-Inflicted Damage . | . . . Shots . | . . . Rammed . | . . . Targets Rammed . | . . . Kicked . | . . . Crushed . | . . . Highest Temperature 111 | . 111 30 Average Temperature 38 | . 60 12 Received Heat Transfer 366 | . 48 318 Siege Activations . | . . . Martial Activations . | . . . Shielding Activations . | . . . Robots Disrupted . | . . . Combat Hostiles . | . . . Robots Corrupted . | . . . Combat Hostiles . | . . . Parts Fried . | . . . Impact Corruptions . | . . . Robots Melted . | . . . Combat Hostiles . | . . . Parts Melted 1 | . . 1 Heat Transferred 759 | . 222 537 Parts Sabotaged . | . . . Parts Stolen . | . . . Parts Stripped . | . . . Power Chain Reactions . | . . . Alert | -11 -10 -9 ------- Run | Yrd Mat Mat Maximum Alert Level . | . . . Low Security (%) 100 | 100 100 100 Level 1 . | . . . Level 2 . | . . . Level 3 . | . . . Level 4 . | . . . Level 5 . | . . . High Security . | . . . Max Security . | . . . Peak Influence 100 | . 35 100 Initial 11 | . . 11 Average 19 | . 10 25 Influence Increases 243 | . 66 177 Destroy 0b10 Robot/C 180 | . 40 140 Destroy 0b10 Robot/NC 5 | . 5 . Destroy Leader 20 | . . 20 Successful Hack 37 | . 21 16 Destroy Structure 1 | . . 1 Influence Decreases 238 | . 37 201 Entered New Map 18 | . . 18 Time Decay 160 | . 37 123 Lost Part 60 | . . 60 Squads Dispatched 2 | . . 2 Investigation 1 | . . 1 Extermination . | . . . Reinforcement 1 | . . 1 Assault . | . . . Garrison . | . . . Intercept . | . . . Searches Triggered . | . . . Construction Impeded 1 | . . 1 Haulers Reinforced . | . . . Active Scanning Responses . | . . . Cargo Convoy Interrupts . | . . . Stealth | -11 -10 -9 --------- Run | Yrd Mat Mat Distress Signals . | . . . Communications Jammed . | . . . Distress Signals . | . . . Times Spotted 16 | . 3 13 Peak Tracking Total 6 | . 2 6 Tactical Retreats . | . . . Traps | -11 -10 -9 ------- Run | Yrd Mat Mat Traps Triggered 3 | . 3 . Indirectly . | . . . Trap Hack Attempts . | . . . Triggered . | . . . Disarmed . | . . . Reprogrammed . | . . . Reused . | . . . Traps Extracted . | . . . Installed . | . . . Triggered . | . . . Machines | -11 -10 -9 ---------- Run | Yrd Mat Mat Machines Disabled . | . . . Max in Single Turn . | . . . Machines Repaired . | . . . Machines Dismantled . | . . . Machines Sabotaged . | . . . Overloaded Fab Kills . | . . . Hacking | -11 -10 -9 --------- Run | Yrd Mat Mat Machines Accessed 5 | . 2 3 Terminals 5 | . 2 3 Fabricators . | . . . Repair Stations . | . . . Recycling Units . | . . . Scanalyzers . | . . . Garrison Access . | . . . Total Hacks 17 | . 6 11 Successful 14 | . 4 10 Failed 3 | . 2 1 Catastrophic . | . . . Database Lockouts . | . . . Manual . | . . . Terminals 17 | . 6 11 Fabricators . | . . . Repair Stations . | . . . Recycling Units . | . . . Scanalyzers . | . . . Garrison Access . | . . . Terminal Hacks 14 | . 4 10 Record 9 | . 2 7 Robot Analysis 1 | . 1 . Locate Traps 1 | . . 1 Registered Components 1 | . . 1 Zone Layout 2 | . 1 1 Fabricator Hacks . | . . . Repair Station Hacks . | . . . Recycling Unit Hacks . | . . . Scanalyzer . | . . . Garrison Access Hacks . | . . . Unauthorized Hacks . | . . . Terminals . | . . . Fabricators . | . . . Repair Stations . | . . . Recycling Units . | . . . Scanalyzers . | . . . Garrison Access . | . . . Data Cores Recovered . | . . . Used . | . . . Hacking Detections 4 | . 2 2 Full Trace Events 1 | . . 1 Feedback Events . | . . . Feedback Blocked . | . . . Robot Schematics Acquired . | . . . Robots Built . | . . . Authchips . | . . . Time . | . . . Total Robot Build Rating . | . . . Part Schematics Acquired . | . . . Parts Built . | . . . Authchips . | . . . Time . | . . . Total Part Build Rating . | . . . Part Studies Acquired . | . . . Parts Repaired . | . . . Time . | . . . Parts Recycled . | . . . Recycled Matter . | . . . Retrieved Matter . | . . . Retrieved Components . | . . . Parts Scanalyzed . | . . . Part Schematics Acquired . | . . . Parts Damaged . | . . . Bothacking | -11 -10 -9 ------------ Run | Yrd Mat Mat Used RIF Installer . | . . . Robots Hacked . | . . . Non-combat . | . . . Combat . | . . . Robot Hacks Applied . | . . . Relay Couplers Released . | . . . Fabnet Peak Effective % . | . . . Robots Rewired . | . . . Allies Hacked . | . . . Hacks Repelled . | . . . Allies | -11 -10 -9 -------- Run | Yrd Mat Mat Total Allies . | . . . Largest Group . | . . . Highest-Rated Group . | . . . Highest-Rated Ally . | . . . Total Orders . | . . . Ally Attacks . | . . . Total Damage . | . . . Kills . | . . . Allies Corrupted . | . . . Allies Melted . | . . . Intel | -11 -10 -9 ------- Run | Yrd Mat Mat Active Infowar (turns) . | . . . Robot Analysis Total 1 | . 1 . Derelict Logs Recovered . | . . . Drone Launches . | . . . Drone Recoveries . | . . . Exploration | -11 -10 -9 ------------- Run | Yrd Mat Mat Turns Passed 653 | 63 159 431 Spaces Moved 312 | 48 111 153 Core 13 | 11 . 2 Treads . | . . . Legs . | . . . Wheels 299 | 37 111 151 Hover . | . . . Flight . | . . . Fastest Speed 50 | 50 90 135 Average Speed 133 | 80 117 161 Slowest Speed 1450 | 90 135 1450 Overloaded Moves . | . . . Propulsion Burnouts . | . . . Robots Hopped . | . . . Potential Cave-ins . | . . . Cave-ins Triggered . | . . . Exploration Rate (%) 17 | 3 28 22 Regions Visited 2 Branch Regions . Pre-discovered Areas . | . . . Known Exits Taken . | . . . Unknown Exits Taken 2 | 1 1 . Scrap Searched . | . . . Spaces Dug . | . . . Terrain Destroyed . | . . . Melee . | . . . Projectile . | . . . AOE . | . . . Terrain Rammed . | . . . Walls Destroyed . | . . . Machines Disabled . | . . . Actions | -11 -10 -9 --------- Run | Yrd Mat Mat Total 492 | 71 125 296 Wait 122 | 11 6 105 Move 310 | 47 110 153 Hop . | . . . Pick Up 13 | 7 1 5 Fast Attach 1 | 1 . . Attach 9 | 5 1 3 Detach . | . . . Swap . | . . . Drop . | . . . Fire 37 | . 7 30 Melee . | . . . Ram . | . . . Kick . | . . . Crush . | . . . Escape Stasis . | . . . Rewire . | . . . Trap . | . . . Miscellaneous . | . . . Route ------- -11/Scrapyard -10/Materials -9/Materials History --------- Turn | Location | Event 4 | -11/Scrapyard | Discovered new exit (range 16) 64 | -11/Scrapyard | Entered Materials 65 | -10/Materials | Met a group of wandering Federalists 185 | -10/Materials | Discovered new exit (range 16) 223 | -10/Materials | Entered another Materials area 223 | -9/Materials | Evolved 2 slots: Propulsion x1, Utility x1 301 | -9/Materials | Build established: Mutant 610 | -9/Materials | Core integrity fell below 50% 635 | -9/Materials | Core integrity fell below 20% 646 | -9/Materials | System corruption reached 10% 654 | -9/Materials | Destroyed by G-34 Mercenary with Small Laser Last Messages --------------- Downloaded coordinate data. Sml. Laser destroyed. System corrupted by crushing effect (+5). System corrupted: Assault Rifle rejected. Ion Engine destroyed. Com. Wheel destroyed. System corrupted by crushing effect (+1). Knocked back. Sml. Laser destroyed. System corrupted by crushing effect (+3). K-01 Serf cleans the Purification Channel. Knocked back. K-01 Serf cleans the Purification Channel. 6CH8 KNIPFW5JL&E#ZNEUQ Knocked back. K-01 Serf collects debris. Sml. Storage Unit destroyed. System corrupted by crushing effect (+4). K-01 Serf collects debris. System corrupted: Matter fused (-5). Map ----- +----------------------------------------------------+ | ?????????????????????????????????????????????????? | | ?????????????????????????????????????????????????? | | ?????????????????????????????????????????????????? | | ?????????????????????????????????????????????????? | | ?????????????????????????????????????????????????? | | ?????????????????????????????????????????????????? | | ?????????????????????????????????????????????????? | | ?????????????????????????????????????????????????? | | ?????????????????????????????????????????????????? | | ?????????????????????????????????????????????????? | | ???????????????????????? ??????????????????????] | | ???????????????????????? #?????????????????????? | | ???????????????????????? ?????????????????????? | | ???????????????????????# ?????????????????????? | | ???????????????????????# ""????????????????????? | | ???????????????????????# ""????????????????????? | | ???????????????????????# ""????#???????????????? | | ???????????????????????# ?? k#???????????????? | | ???????????????????????# #???????????????? | | ??????????????#????????# """ #???????????????? | | ???????????#+##T######## """ ####????????????? | | ???????????# r""" ???????????? | | ???????????# ????????????? | | ?????????????? ???????????? | | ??????????????????# " "" ??????????? | | ?###########??????# @ "R"" ??????????? | | ?# #??????# b """ ?????????? | | ?# #??????# ?????????? | | ?# """ #??????# u ?????????? | | ?# """"" #??????#w ##############????????? | | ?# """"" #??????# # T #????????? | | ?# """"" #??????#u g # """ #????????? | | ?# """ #??????# k + [ """ #????????? | | ?# % % = #??????# # """ #????????? | | ?##+####+########## # #????????? | | ??# ## %% r##############????????? | | ?## ## #?????????????????????? | | ?# " """ """ #?????????????????????? | | ?# "%"""""""""" #?????????????????????? | | ?# " """"" " #?????????????????????? | | ?+ ^^????????????????????? | | ?# ^^ ??????????????????? | | ?# ** ^ ?????????????????? | | ## ** ^ ?????????????????? | | # ** ?????????????????? | | ??????????????????? | | ???????????????????? | | ######### ????????????????????? | | # #???????? ??=??????????????????? | | # """" #????????? ??????????????????????????? | +----------------------------------------------------+ Best States ------------- Heat Dissipation 28 Energy Generation 10 Energy Capacity 250 Matter Stores 300 Matter Capacity 300 Sight Range 16 Terrain Scan Density 10 Evasion (%) 42 Item Schematics ----------------- None Robot Schematics ------------------ None Fabricated ------------ Nothing Repaired ---------- Nothing Studied --------- None Alien Tech Used ----------------- None Achievements -------------- None Challenges ------------ None Game ------ Seed FactoryBombardmentFilter Manual? 0 Play Time 00:12:27 Cumulative 19.9 hours Start 2026.03.02 @ 12:57:42 End 2026.03.02 @ 13:13:50 Sessions 1 Manual Loads 0 Difficulty Rogue Special Mode None Game No. 37 Rogue 37 Adventurer 0 Explorer 0 Win Type - Total 0 Types 0/0/0/0/0/0/0/0/0/0 Lore% 13 Gallery% 20 Achievement% 12 Wizard Run 0 Options --------- Layout 1 ASCII 0 Keyboard 0 Movement Mouse Keybinds 0 Fullscreen 1 Font 24/Smallcaps Map View 50x35 Zoom Use 0% Tactical HUD 0 Map Filters NONE Filters NONE Steam 1 RUN: 1517a342-7893-46de-9128-4bf667b51acb